Cogmind - Beta 17 @@@ ROGUE MODE // 2026.06.30 @ 18:39:59 Player: Duduxx Result: Destroyed by WH-FC6(R) with Subdweller Beam Cannon Performance ------------- Evolutions (0) 0 Regions Visited (2) 400 Robots Destroyed (16) 80 Value Destroyed (207) 207 Prototype IDs (0) 0 Alien Tech Used (0) 0 Bonus (0) 0 TOTAL SCORE: 687 Bonus ------- None Cogmind --------- Core Integrity 0/250 Matter 259/300 Energy 200/200 System Corruption 0% Temperature Cool (9) Movement Rolling (90) Location -10/Subcaves Parts ------- > --- POWER (1) -------- Subdweller Power Source > --- PROPULSION (2) --- Wheel Compact Wheel > --- UTILITY (2) ------ Small Storage Unit Seismic Detector > --- WEAPON (2) ------- Light Assault Rifle > --- INVENTORY (8) ---- Ion Engine Ion Engine Grenade Launcher Grenade Launcher Peak State ------------ > --- POWER ------------ Subdweller Power Source > --- PROPULSION ------- Light Treads Light Treads > --- UTILITY ---------- Small Storage Unit Seismic Detector > --- WEAPON ----------- Medium Laser Light Assault Rifle > --- INVENTORY -------- Ion Engine Ion Engine Wheel Wheel Compact Wheel Grenade Launcher Grenade Launcher [Rating: 8] Favorites ----------- Power Ion Engine Engine Ion Engine Propulsion Light Treads Treads Light Treads Wheel Wheel Utility Small Storage Unit Device Seismic Detector Storage Small Storage Unit Weapon Medium Laser Energy Gun Medium Laser Ballistic Gun Light Assault Rifle Launcher Grenade Launcher Build | -11 -10 -10 ------- Run | Yrd Mat Sub Slots Evolved . | . . . Power . | . . . Propulsion . | . . . Utility . | . . . Weapon . | . . . Parts Attached 13 | 7 1 5 Power 2 | 1 . 1 Engine 2 | 1 . 1 Core . | . . . Reactor . | . . . Propulsion 5 | 2 . 3 Treads 2 | 2 . . Leg . | . . . Wheel 3 | . . 3 Hover . | . . . Flight . | . . . Utility 2 | 2 . . Device 1 | 1 . . Storage 1 | 1 . . Processor . | . . . Hackware . | . . . Protection . | . . . Artifact . | . . . Weapon 4 | 2 1 1 Energy Gun 2 | 2 . . Energy Cannon . | . . . Ballistic Gun 1 | . . 1 Ballistic Cannon . | . . . Launcher 1 | . 1 . Special Weapon . | . . . Impact Weapon . | . . . Slashing Weapon . | . . . Piercing Weapon . | . . . Special Melee Weapon . | . . . Unidentified Prototypes . | . . . Parts Lost 6 | . . 6 Power 1 | . . 1 Propulsion 3 | . . 3 Utility . | . . . Weapon 2 | . . 2 Highest Loss Streak 5 | . . 5 To Critical Strikes . | . . . Average Backups 6 | 3 7 7 Power 1 | . 1 2 Propulsion 2 | 2 3 2 Utility . | . . . Weapon 2 | . 2 2 Tool/Special . | . . . Unused Backups 4 | . 1 3 Power 2 | . . 2 Propulsion 1 | . 1 . Utility . | . . . Weapon 1 | . . 1 Tool/Special . | . . . Average Slot Usage (%) 98 | . 100 90 Engine 12 | . 14 7 Treads 27 | . 28 24 Device 14 | . 14 14 Storage 14 | . 14 14 Energy Gun 26 | . 27 21 Ballistic Gun 1 | . . 7 Peak Build Rating 8 | 7 7 8 Average Rating 6 | 5 7 6 On Entrance 4 | . 7 7 Avg Prop Armor Cover (%) . | . . . Naked Turns . | . . . Heaviest Build 16 | 15 16 15 Greatest Support 40 | 40 40 40 Greatest Overweight (x) 1 | 1 . . Average Overweight (x) . | . . . Largest Inventory Capacity 8 | 8 8 8 Average Capacity 7 | 7 8 8 Most Carried 8 | 5 8 8 Average Carried 6 | 4 7 7 Final Capacity 8 | 8 8 8 Final Carried 8 | 5 8 4 Class Distribution -------------------- 100% | Mutant Dominant Class ---------------- Mutant | -10/Materials Mutant | -10/Subcaves Resources | -11 -10 -10 ----------- Run | Yrd Mat Sub Matter Collected 320 | 270 50 . Remotely . | . . . Salvage Created 349 | 185 104 60 Parts 37 | 16 17 4 Haulers Intercepted . | . . . Recyclers Shooed 1 | . 1 . Parts Field Recycled . | . . . Retrieved Matter . | . . . Parts Self-Destructed 7 | . . 7 Prevented . | . . . Parts Restored . | . . . Kills | -11 -10 -10 ------- Run | Yrd Mat Sub Combat Hostiles Destroyed 8 | . 7 1 Guns 2 | . 1 1 AOE 6 | . 6 . Classes Destroyed 6 | 2 3 1 Tunneler 5 | 5 . . Recycler 1 | 1 . . Watcher 2 | . 2 . Swarmer 6 | . 6 . Grunt 1 | . 1 . Subdweller 1 | . . 1 Best Kill Streak 6 | 4 6 1 Combat Bots Only 6 | . 6 1 Max Kills in Single Turn 3 | 1 3 1 Gunslinging . | . . . Exploded 3 | . 3 . Melee . | . . . Uniques/NPCs Destroyed . | . . . Combat | -11 -10 -10 -------- Run | Yrd Mat Sub Hostile Shots Fired 68 | . 36 32 Missed 16 | . 9 7 Hits 52 | . 27 25 Projectile 52 | . 27 25 Damage Taken 945 | 38 259 648 Core 266 | . 105 161 Absorbed by Shields . | . . . Core Remaining (%) 100 | 100 . . Volleys Fired 40 | 10 13 17 Largest 2 | 2 2 2 Hottest 90 | 90 90 90 Shots Fired 76 | 20 23 33 Gun 73 | 20 20 33 Cannon . | . . . Launcher 3 | . 3 . Special . | . . . Kinetic 11 | . . 11 Thermal 37 | 10 10 17 Explosive 3 | . 3 . Electromagnetic 25 | 10 10 5 Robot Hit Streak 16 | 6 5 16 Robot Miss Streak 3 | 2 3 1 Penetration Max . | . . . Secondary Targets . | . . . Shots Hit Robots 54 | 13 11 30 Core Hits 17 | 6 8 3 Critical Kills . | . . . Critical Parts Destroyed . | . . . Critical Strikes 2 | . . 2 Burn 2 | . . 2 Melee Attacks . | . . . Impact . | . . . Slashing . | . . . Piercing . | . . . Sneak Attacks . | . . . Combat Hostiles . | . . . Follow-up Attacks . | . . . Damage Inflicted 848 | 178 524 146 Guns 428 | 156 126 146 Cannons . | . . . Explosions 420 | 22 398 . Melee . | . . . Ramming . | . . . Kinetic 17 | . . 17 Thermal 209 | 72 62 75 Explosive 398 | . 398 . Electromagnetic 224 | 106 64 54 Impact . | . . . Slashing . | . . . Piercing . | . . . Highest Corruption . | . . . Average Corruption . | . . . Corruption Purged . | . . . Corruption Blocked . | . . . Overload Shots . | . . . Overflow Damage 12 | . 12 . Projectiles . | . . . Explosions 12 | . 12 . Melee . | . . . Knockbacks . | . . . Impact . | . . . Kinetic . | . . . Secondary . | . . . Self-Inflicted Damage 68 | 38 30 . Shots 2 | 1 1 . Rammed 1 | . 1 . Targets Rammed 1 | . 1 . Kicked . | . . . Crushed . | . . . Highest Temperature 138 | 120 138 4 Average Temperature 39 | 42 43 4 Received Heat Transfer 162 | . 18 144 Siege Activations . | . . . Martial Activations . | . . . Shielding Activations . | . . . Robots Disrupted . | . . . Combat Hostiles . | . . . Robots Corrupted . | . . . Combat Hostiles . | . . . Parts Fried . | . . . Impact Corruptions . | . . . Robots Melted . | . . . Combat Hostiles . | . . . Parts Melted . | . . . Heat Transferred 703 | 148 185 370 Parts Sabotaged . | . . . Parts Stolen . | . . . Parts Stripped . | . . . Power Chain Reactions 1 | 1 . . Alert | -11 -10 -10 ------- Run | Yrd Mat Sub Maximum Alert Level . | . . . Low Security (%) 100 | 100 100 . Level 1 . | . . . Level 2 . | . . . Level 3 . | . . . Level 4 . | . . . Level 5 . | . . . High Security . | . . . Max Security . | . . . Peak Influence 154 | 20 154 . Initial . | . . . Average 56 | 3 77 . Influence Increases 229 | 30 199 . Destroy 0b10 Robot/C 140 | . 140 . Destroy 0b10 Robot/NC 40 | 30 10 . Destroy Leader 34 | . 34 . Destroy Structure 15 | . 15 . Influence Decreases 229 | 30 168 31 Entered New Map 15 | . . 15 Time Decay 204 | 30 168 6 Lost Part 10 | . . 10 Squads Dispatched 1 | . 1 . Investigation . | . . . Extermination . | . . . Reinforcement 1 | . 1 . Assault . | . . . Garrison . | . . . Intercept . | . . . Searches Triggered . | . . . Construction Impeded . | . . . Haulers Reinforced . | . . . Active Scanning Responses . | . . . Cargo Convoy Interrupts . | . . . Stealth | -11 -10 -10 --------- Run | Yrd Mat Sub Distress Signals 1 | . 1 . Communications Jammed . | . . . Distress Signals . | . . . Times Spotted 11 | . 9 2 Peak Tracking Total 7 | . 7 2 Tactical Retreats . | . . . Traps | -11 -10 -10 ------- Run | Yrd Mat Sub Traps Triggered . | . . . Indirectly . | . . . Trap Hack Attempts . | . . . Triggered . | . . . Disarmed . | . . . Reprogrammed . | . . . Reused . | . . . Traps Extracted . | . . . Installed . | . . . Triggered . | . . . Machines | -11 -10 -10 ---------- Run | Yrd Mat Sub Machines Disabled . | . . . Max in Single Turn . | . . . Machines Repaired . | . . . Machines Dismantled . | . . . Machines Sabotaged . | . . . Overloaded Fab Kills . | . . . Hacking | -11 -10 -10 --------- Run | Yrd Mat Sub Machines Accessed . | . . . Terminals . | . . . Fabricators . | . . . Repair Stations . | . . . Recycling Units . | . . . Scanalyzers . | . . . Garrison Access . | . . . Total Hacks . | . . . Successful . | . . . Failed . | . . . Catastrophic . | . . . Database Lockouts . | . . . Manual . | . . . Terminals . | . . . Fabricators . | . . . Repair Stations . | . . . Recycling Units . | . . . Scanalyzers . | . . . Garrison Access . | . . . Terminal Hacks . | . . . Fabricator Hacks . | . . . Repair Station Hacks . | . . . Recycling Unit Hacks . | . . . Scanalyzer . | . . . Garrison Access Hacks . | . . . Unauthorized Hacks . | . . . Terminals . | . . . Fabricators . | . . . Repair Stations . | . . . Recycling Units . | . . . Scanalyzers . | . . . Garrison Access . | . . . Data Cores Recovered . | . . . Used . | . . . Hacking Detections . | . . . Full Trace Events . | . . . Feedback Events . | . . . Feedback Blocked . | . . . Robot Schematics Acquired . | . . . Robots Built . | . . . Authchips . | . . . Time . | . . . Total Robot Build Rating . | . . . Part Schematics Acquired . | . . . Parts Built . | . . . Authchips . | . . . Time . | . . . Total Part Build Rating . | . . . Part Studies Acquired . | . . . Parts Repaired . | . . . Time . | . . . Parts Recycled . | . . . Recycled Matter . | . . . Retrieved Matter . | . . . Retrieved Components . | . . . Parts Scanalyzed . | . . . Part Schematics Acquired . | . . . Parts Damaged . | . . . Bothacking | -11 -10 -10 ------------ Run | Yrd Mat Sub Used RIF Installer . | . . . Robots Hacked . | . . . Non-combat . | . . . Combat . | . . . Robot Hacks Applied . | . . . Relay Couplers Released . | . . . Fabnet Peak Effective % . | . . . Robots Rewired . | . . . Allies Hacked . | . . . Hacks Repelled . | . . . Allies | -11 -10 -10 -------- Run | Yrd Mat Sub Total Allies . | . . . Largest Group . | . . . Highest-Rated Group . | . . . Highest-Rated Ally . | . . . Total Orders . | . . . Ally Attacks . | . . . Total Damage . | . . . Kills . | . . . Allies Corrupted . | . . . Allies Melted . | . . . Intel | -11 -10 -10 ------- Run | Yrd Mat Sub Active Infowar (turns) 495 | 18 401 76 Seismic 495 | 18 401 76 Robot Analysis Total . | . . . Derelict Logs Recovered . | . . . Drone Launches . | . . . Drone Recoveries . | . . . Exploration | -11 -10 -10 ------------- Run | Yrd Mat Sub Turns Passed 638 | 161 401 76 Spaces Moved 294 | 78 202 14 Core 9 | 9 . . Treads 282 | 69 202 11 Legs . | . . . Wheels 3 | . . 3 Hover . | . . . Flight . | . . . Fastest Speed 50 | 50 160 90 Average Speed 156 | 149 160 145 Slowest Speed 160 | 160 160 160 Overloaded Moves . | . . . Propulsion Burnouts . | . . . Robots Hopped . | . . . Potential Cave-ins . | . . . Cave-ins Triggered . | . . . Exploration Rate (%) 17 | 6 43 4 Regions Visited 2 Branch Regions 1 Pre-discovered Areas . | . . . Known Exits Taken . | . . . Unknown Exits Taken 2 | 1 1 . Scrap Searched . | . . . Spaces Dug . | . . . Terrain Destroyed 18 | 3 15 . Melee . | . . . Projectile . | . . . AOE 18 | 3 15 . Terrain Rammed . | . . . Walls Destroyed . | . . . Machines Disabled . | . . . Actions | -11 -10 -10 --------- Run | Yrd Mat Sub Total 393 | 99 256 38 Wait 36 | . 34 2 Move 292 | 77 201 14 Hop . | . . . Pick Up 9 | 5 4 . Fast Attach 8 | 7 . 1 Attach 4 | . . 4 Detach . | . . . Swap 2 | . 2 . Drop 1 | . 1 . Fire 40 | 10 13 17 Melee . | . . . Ram . | . . . Kick . | . . . Crush 1 | . 1 . Escape Stasis . | . . . Rewire . | . . . Trap . | . . . Miscellaneous . | . . . Route ------- -11/Scrapyard -10/Materials (discovered 3 exits: [*Mat] / [*Min] / [*Sub]) -10/Subcaves History --------- Turn | Location | Event 29 | -11/Scrapyard | Discovered new exit (range 16) 162 | -11/Scrapyard | Entered Materials 301 | -10/Materials | Build established: Mutant 369 | -10/Materials | Discovered new exit (range 7) 394 | -10/Materials | Discovered new exit (range 8) 410 | -10/Materials | Discovered new exit (range 14) 563 | -10/Materials | Entered Subcaves 564 | -10/Subcaves | Ambushed by Subdwellers from Twisted Machinery 586 | -10/Subcaves | Core integrity fell below 50% 626 | -10/Subcaves | Core integrity fell below 20% 639 | -10/Subcaves | Destroyed by WH-FC6(R) with Subdweller Beam Cannon Last Messages --------------- AMBIENT_HEAT=-10 GOAL=ESCAPE 00564_ Y3-L4I(R) emerges from the Twisted Machinery. 00564_ Ion Engine destroyed. 00565_ PI-HOY(z): "She is not going to be happy we haven't found any suitable candidates yet." 00580_ Y3-L4I(R) suffers critical hit (Burn). 00595_ EM Pulse Gun destroyed. 00601_ Y3-L4I(R) destroyed. 00607_ Acquired Sub. Power Source. 00611_ Subatomizers dissect the Corrupted Disposable Heat Sink. 00615_ Lgt. Treads destroyed. 00631_ Wheel destroyed. 00633_ Lgt. Treads destroyed. 00635_ Med. Laser destroyed. 00636_ Subatomizers dissect the Corrupted Disposable Heat Sink. Map ----- +----------------------------------------------------+ | ????????????????????????????????????????? | | ????????????????????????????????????????? | | ????????????????????????????????????????? | | ????????????????????????????????????????? | | ????????????????????????????????????????? | | ????????????????????????????????????????? | | ????????????????????????????????????????? | | ????????????????????????????????????????? | | ????????????????????????????????????????? | | ????????????????????????????????????????? | | ????????????????????????????????????????? | | ????????????????????????????????????????? | | ????????????????????????????????????????? | | ????????????????????????????????????????? | | ????????????????????????????????????????? | | ????????????????????????????????????????? | | ??????????????????####??????????????????? | | ????????????????## ##?????????????????? | | ???????????????## #????? ???????????? | | ?????????###??## ????? ???????????? | | ??????????""### #???? #???????????? | | ??????????? ;# ###? ##???????????? | | ????????????" # #???????????? | | ?????????????# ??????????????? | | ?????????????? #?????????????????? | | ???????????????#@ #??????????????????? | | ???????????????# ##??????????????????? | | ???????????????# #### #??????????????? | | ???????????????# ###????????????? | | ??????????????#;!&! R " #??????????? | | ??????????????###%##"# """""""??????????? | | ????????????????#&####? " ?????????????? | | ???????????????##= ###??##???" #????????? | | ???????????????# "#????# "" # "?????? | | ???????????????# "#?? ????? | | ???????????????## # ????? | | ????????????????# #???????? | | ????????????????# " #???????? | | ???????????????# ##"# #?????? | | ???????????????## ### "## " ##?????? | | ????????????????# ??? #?? "" #?????? | | ???????????????? ??? ???? "#?" ??????? | | ???????????????? ??? ???? #??????????? | | ???????????????? ??? ##????? ??????????? | | ???????????????? ???##?????????????????? | | ???????????????## ??????????????????????? | | ????????????????# ??????????????????????? | | ????????????????????????????????????????? | | ????????????????????????????????????????? | | ????????????????????????????????????????? | +----------------------------------------------------+ Best States ------------- Heat Dissipation 25 Energy Generation 15 Energy Capacity 250 Matter Stores 300 Matter Capacity 300 Sight Range 16 Terrain Scan Density 10 Evasion (%) 40 Recoil Reduction 2 Item Schematics ----------------- None Robot Schematics ------------------ None Fabricated ------------ Nothing Repaired ---------- Nothing Studied --------- None Alien Tech Used ----------------- None Achievements -------------- None Challenges ------------ None Game ------ Seed ArchitectBehemothScrap Manual? 0 Play Time 00:05:54 Cumulative 135.4 hours Start 2026.06.30 @ 18:35:21 End 2026.06.30 @ 18:39:59 Sessions 1 Manual Loads 0 Difficulty Rogue Special Mode None Game No. 256 Rogue 256 Adventurer 0 Explorer 0 Win Type - Total 0 Types 0/0/0/0/0/0/0/0/0/0 Lore% 37 Gallery% 46 Achievement% 28 Wizard Run 0 Options --------- Layout 1 ASCII 0 Keyboard 1 Movement Arrows Keybinds 0 Fullscreen 2 Font 24/Smallcaps Map View 50x35 Zoom Use 0% Tactical HUD 1 Map Filters NONE Filters NONE Steam 1 RUN: 22f3a0b4-6e42-4ffc-ac0a-315239def7f5